fUSD/lending_fUSD_20250521
["ID","MTS","AMOUNT","RATE_DAILY","PERIOD"]
[361831780,1747824650391,-420.0,0.00032876,5]
[361831781,1747824650403,-420.0,0.00032876,5]
[361831782,1747824650412,-420.0,0.00032876,5]
[361831783,1747824650422,-420.0,0.00032876,5]
[361831784,1747824650432,-420.0,0.00032876,5]
[361831785,1747824650442,-2516.54,0.00032876,5]
[361831786,1747824650453,-420.0,0.00032876,5]
[361831787,1747824650463,-420.0,0.00032876,5]
[361831788,1747824650473,-420.0,0.00032876,5]
[361831789,1747824650483,-420.0,0.00032876,5]
[361831790,1747824650494,-420.0,0.00032876,5]
[361831791,1747824650503,-420.0,0.00032876,5]
[361831792,1747824650513,-420.0,0.00032876,5]
[361831793,1747824650524,-420.0,0.00032876,5]
[361831794,1747824650534,-420.0,0.00032876,5]
[361831795,1747824650544,-420.0,0.00032876,5]
[361831796,1747824650555,-420.0,0.00032876,5]
[361831797,1747824650565,-420.0,0.00032876,5]
[361831798,1747824650575,-420.0,0.00032876,5]
[361831799,1747824650585,-420.0,0.00032876,5]
[361831800,1747824650595,-420.0,0.00032876,5]
[361831801,1747824650605,-420.0,0.00032876,5]
[361831802,1747824650615,-420.0,0.00032876,5]
[361831803,1747824650625,-400.0,0.00032876,5]
[361831804,1747824650635,-1030.88,0.00032876,5]
[361831805,1747824650644,-420.0,0.00032876,5]
[361831806,1747824650654,-420.0,0.00032876,5]
[361831807,1747824650664,-767.29,0.00032876,5]
[361831808,1747824650675,-3837.68,0.00032876,5]
[361831809,1747824650685,-420.0,0.00032876,5]
[361831810,1747824650695,-420.0,0.00032876,5]
[361831811,1747824650707,-2130.73,0.00032876,5]
[361831812,1747824650718,-434.35817939,0.00032876,5]
[361831813,1747824650739,-420.0,0.00032876,5]
[361831814,1747824650758,-420.0,0.00032876,5]
[361831815,1747824650769,-420.0,0.00032876,5]
[361831816,1747824650781,-420.0,0.00032876,5]
[361831817,1747824650794,-1218.82,0.00032876,5]
[361831818,1747824650804,-420.0,0.00032876,5]
[361831819,1747824650814,-420.0,0.00032876,5]
[361831820,1747824650824,-420.0,0.00032876,5]
[361831821,1747824650834,-1809.63,0.00032876,5]
[361831822,1747824650848,-420.0,0.00032876,5]
[361831823,1747824650859,-420.0,0.00032876,5]
[361831824,1747824650870,-420.0,0.00032876,5]
[361831825,1747824650880,-420.0,0.00032876,5]
[361831826,1747824650890,-400.0,0.00032876,5]
[361831827,1747824650900,-400.0,0.00032876,5]
[361831828,1747824650910,-420.0,0.00032876,5]
[361831829,1747824650921,-420.0,0.00032876,5]
[361831830,1747824650931,-535.25448862,0.00032876,5]
[361831831,1747824650941,-2099.82,0.00032876,5]
[361831832,1747824650951,-420.0,0.00032876,5]
[361831833,1747824650961,-420.0,0.00032876,5]
[361831834,1747824650971,-1128.84,0.00032876,5]
[361831835,1747824650982,-420.0,0.00032876,5]
[361831836,1747824650993,-420.0,0.00032876,5]
[361831837,1747824651004,-420.0,0.00032876,5]
[361831838,1747824651015,-442.24,0.00032876,5]
[361831839,1747824651025,-420.0,0.00032876,5]
[361831840,1747824651035,-420.0,0.00032876,5]
[361831841,1747824651046,-1066.2,0.00032876,5]
[361831842,1747824651057,-420.0,0.00032876,5]
[361831843,1747824651068,-565.08,0.00032876,5]
[361831844,1747824651078,-420.0,0.00032876,5]
[361831845,1747824651088,-420.0,0.00032876,5]
[361831846,1747824651098,-420.0,0.00032876,5]
[361831847,1747824651110,-872.85,0.00032876,5]
[361831848,1747824651120,-420.0,0.00032876,5]
[361831849,1747824651130,-420.0,0.00032876,5]
[361831850,1747824651140,-441.38,0.00032876,5]
[361831851,1747824651150,-850.13,0.00032876,5]
[361831852,1747824651161,-400.0,0.00032876,5]
[361831853,1747824651171,-445.79697911,0.00032876,5]
[361831854,1747824651181,-420.0,0.00032876,5]
[361831855,1747824651191,-420.0,0.00032876,5]
[361831856,1747824651201,-420.0,0.00032876,5]
[361831857,1747824651211,-665.85,0.00032876,2]
[361831858,1747824651222,-1904.64,0.00032876,5]
[361831859,1747824651232,-3791.83,0.00032876,5]
[361831860,1747824651242,-420.0,0.00032876,5]
[361831861,1747824651253,-420.0,0.00032876,5]
[361831862,1747824651263,-420.0,0.00032876,5]
[361831863,1747824651273,-420.0,0.00032876,5]
[361831864,1747824651288,-655.26,0.00032876,5]
[361831865,1747824651298,-1861.15,0.00032876,5]
[361831866,1747824651308,-552.94,0.00032876,5]
[361831867,1747824651318,-260.0,0.00032876,5]
[361831868,1747824651327,-500.0,0.00032876,5]
[361831869,1747824651338,-420.0,0.00032876,5]
[361831870,1747824651348,-438.92,0.00032876,5]
[361831871,1747824651358,-474.93,0.00032876,5]
[361831872,1747824651367,-420.0,0.00032876,5]
[361831873,1747824651377,-420.0,0.00032876,5]
[361831874,1747824651387,-420.0,0.00032876,5]
[361831875,1747824651397,-420.0,0.00032876,5]
[361831876,1747824651407,-488.24369491,0.00032876,5]
[361831877,1747824651417,-420.0,0.00032876,5]
[361831878,1747824651426,-5790.69,0.00032876,5]
[361831879,1747824651435,-361.99276341,0.00032876,5]
[361831880,1747824651445,-420.0,0.00032876,5]
[361831881,1747824651455,-420.0,0.00032876,5]
[361831882,1747824651464,-420.0,0.00032876,5]
[361831883,1747824651474,-420.0,0.00032876,5]
[361831884,1747824651483,-448.7,0.00032876,5]
[361831885,1747824651493,-1429.89,0.00032876,5]
[361831886,1747824651503,-420.0,0.00032876,5]
[361831887,1747824651513,-420.0,0.00032876,5]
[361831888,1747824651522,-499.14,0.00032876,5]
[361831889,1747824651532,-602.56,0.00032876,5]
[361831890,1747824651542,-3016.95,0.00032876,5]
[361831891,1747824651551,-420.0,0.00032876,5]
[361831892,1747824651561,-525.93,0.00032876,5]
[361831893,1747824651571,-2604.15,0.00032876,5]
[361831894,1747824651581,-420.0,0.00032876,5]
[361831895,1747824651591,-400.90938284,0.00032876,5]
[361831896,1747824651600,-420.0,0.00032876,5]
[361831897,1747824651611,-420.0,0.00032876,5]
[361831898,1747824651621,-420.0,0.00032876,5]
[361831899,1747824651632,-420.0,0.00032876,5]
[361831900,1747824651642,-420.0,0.00032876,5]
[361831901,1747824651652,-760.22,0.00032876,5]
[361831902,1747824651662,-420.0,0.00032876,5]
[361831903,1747824651672,-420.0,0.00032876,5]
[361831904,1747824651681,-400.0,0.00032876,5]
[361831905,1747824651691,-420.0,0.00032876,5]
[361831906,1747824651702,-3492.07,0.00032876,5]
[361831907,1747824651715,-599.94,0.00032876,5]
[361831908,1747824651730,-420.0,0.00032876,5]
[361831909,1747824651739,-420.0,0.00032876,5]
[361831910,1747824651751,-420.0,0.00032876,5]
[361831911,1747824651761,-420.0,0.00032876,5]
[361831912,1747824651771,-590.4,0.00032876,5]
[361831913,1747824651781,-420.0,0.00032876,5]
[361831914,1747824651791,-1407.8,0.00032876,5]
[361831915,1747824651802,-764.76,0.00032876,5]
[361831916,1747824651812,-420.0,0.00032876,5]
[361831917,1747824651822,-420.0,0.00032876,5]
[361831918,1747824651832,-288.33847474,0.00032876,5]
[361831919,1747824651841,-420.0,0.00032876,5]
[361831920,1747824651851,-420.0,0.00032876,5]
[361831921,1747824651862,-420.0,0.00032876,5]
[361831922,1747824651873,-420.0,0.00032876,5]
[361831923,1747824651884,-1142.94,0.00032876,5]
[361831924,1747824651894,-420.0,0.00032876,5]
[361831925,1747824651904,-420.0,0.00032876,5]
[361831926,1747824651914,-1438.9,0.00032876,5]
[361831927,1747824651924,-420.0,0.00032876,5]
[361831928,1747824651934,-420.0,0.00032876,5]
[361831929,1747824651944,-420.0,0.00032876,5]
[361831930,1747824651954,-420.0,0.00032876,5]
[361831931,1747824651965,-281.07881833,0.00032876,5]
[361831932,1747824651975,-420.0,0.00032876,5]
[361831933,1747824651985,-206.17749463,0.00032876,5]
[361831934,1747824651994,-420.0,0.00032876,5]
[361831935,1747824652006,-420.0,0.00032876,5]
[361831936,1747824652016,-420.0,0.00032876,5]
[361831937,1747824652027,-420.0,0.00032876,5]
[361831938,1747824652038,-420.0,0.00032876,5]
[361831939,1747824652048,-420.0,0.00032876,5]
[361831940,1747824652058,-420.0,0.00032876,2]
[361831941,1747824652068,-1536.59,0.00032876,5]
[361831942,1747824652306,-420.0,0.00032876,5]
[361831943,1747824652317,-400.0,0.00032876,5]
[361831944,1747824652327,-425.78,0.00032876,5]
[361831945,1747824652338,-324.68438947,0.00032876,5]
[361831946,1747824652347,-400.0,0.00032876,5]
[361831947,1747824652358,-420.0,0.00032876,5]
[361831948,1747824652367,-420.0,0.00032876,5]
[361831949,1747824652377,-420.0,0.00032876,5]
[361831950,1747824652387,-420.0,0.00032876,5]
[361831951,1747824652396,-420.0,0.00032876,5]
[361831952,1747824652406,-420.0,0.00032876,5]
[361831953,1747824652415,-420.0,0.00032876,5]
[361831954,1747824652425,-420.0,0.00032876,5]
[361831955,1747824652435,-4539.19,0.00032876,5]
[361831956,1747824652445,-420.0,0.00032876,5]
[361831957,1747824652455,-420.0,0.00032876,5]
[361831958,1747824652465,-466.64462588,0.00032876,5]
[361831959,1747824652475,-420.0,0.00032876,5]
[361831960,1747824652485,-4188.09,0.00032876,5]
[361831961,1747824652494,-420.0,0.00032876,5]
[361831962,1747824652504,-498.15,0.00032876,5]
[361831963,1747824652514,-420.0,0.00032876,5]
[361831964,1747824652523,-420.0,0.00032876,5]
[361831965,1747824652533,-420.0,0.00032876,5]
[361831966,1747824652543,-420.0,0.00032876,2]
[361831967,1747824652553,-420.0,0.00032876,5]
[361831968,1747824652563,-420.0,0.00032876,5]
[361831969,1747824652573,-1726.06,0.00032876,5]
[361831970,1747824652583,-420.0,0.00032876,5]
[361831971,1747824652593,-420.0,0.00032876,5]
[361831972,1747824652603,-420.0,0.00032876,5]
[361831973,1747824652614,-420.0,0.00032876,5]
[361831974,1747824652624,-420.0,0.00032876,5]
[361831975,1747824652634,-512.61803216,0.00032876,5]
[361831976,1747824652644,-420.0,0.00032876,5]
[361831977,1747824652653,-420.0,0.00032876,5]
[361831978,1747824652663,-420.0,0.00032876,5]
[361831979,1747824652673,-420.0,0.00032876,5]
[361831980,1747824652683,-586.12,0.00032876,5]
[361831981,1747824652693,-420.0,0.00032876,5]
[361831982,1747824652703,-420.0,0.00032876,5]
[361831983,1747824652716,-420.0,0.00032876,5]
[361831984,1747824652726,-420.0,0.00032876,5]
[361831985,1747824652736,-420.0,0.00032876,5]
[361831986,1747824652745,-420.0,0.00032876,5]
[361831987,1747824652757,-849.87,0.00032876,5]
[361831988,1747824652766,-420.0,0.00032876,5]
[361831989,1747824652777,-420.0,0.00032876,5]
[361831990,1747824652789,-535.69302221,0.00032876,5]
[361831991,1747824652800,-730.44,0.00032876,5]
[361831992,1747824652809,-2872.85,0.00032876,5]
[361831993,1747824652819,-420.0,0.00032876,5]
[361831994,1747824652828,-420.0,0.00032876,5]
[361831995,1747824652838,-450.0,0.00032876,5]
[361831996,1747824652849,-432.92,0.00032876,5]
[361831997,1747824652859,-3717.22,0.00032876,5]
[361831998,1747824652868,-420.0,0.00032876,5]
[361831999,1747824652877,-1095.04,0.00032899,5]
[361832000,1747824652888,-380.25682322,0.00033072,2]
[361832001,1747824652898,-845.77482648,0.0003313,2]
[361832002,1747824652908,-1268.66223972,0.0003314,2]
[361832003,1747824652918,-188.43128113,0.00033149,5]
[361832004,1747824653304,-906.60871887,0.00033149,5]
[361832005,1747824653314,-301.04865822,0.00033149,5]
[361832006,1747824653449,-420.0,0.00032876,5]
[361832007,1747824653459,-402.818844,0.00033149,5]
[361832008,1747824653499,-127.27984505,0.00033149,5]
[361832015,1747825832203,-153.97,0.00013699,2]
[361832016,1747825832215,-200.0,0.00019863,2]
[361832017,1747825832226,-200.0,0.00021766,2]
[361832018,1747825832235,-200.0,0.00023138,2]
[361832019,1747825832246,-153.97,0.00026027,2]
[361832020,1747825832256,-200.0,0.00026102,2]
[361832021,1747825832266,-820.0,0.00029136,2]
[361832022,1747825832277,-681.51,0.00029149,2]
[361832023,1747825832287,-280.2671655,0.00030212,2]
[361832024,1747825832297,-287.32,0.00030983,2]
[361832025,1747825832307,-765.81,0.00031,20]
[361832026,1747825832332,-180.0,0.00031,4]
[361832027,1747825832343,-280.2671655,0.00031129,2]
[361832028,1747825832354,-177.99,0.0003123,2]
[361832029,1747825832365,-267.06,0.00031243,120]
[361832030,1747825832376,-200.0,0.00031369,2]
[361832031,1747825832386,-681.51,0.00031413,2]
[361832032,1747825832396,-254.3,0.00031416,2]
[361832033,1747825832408,-1000.0,0.00031465,2]
[361832034,1747825832419,-682.68,0.00031592,2]
[361832035,1747825832430,-280.2671655,0.00031592,2]
[361832036,1747825832442,-400.0,0.00031706,2]
[361832037,1747825832453,-301.0,0.00031706,3]
[361832038,1747825832464,-1200.0,0.00031706,3]
[361832039,1747825832474,-1380.36505423,0.00031707,2]
[361832042,1747825832498,-933.27712356,0.00031707,2]
[361832044,1747825832511,-616.45002,0.00031707,2]
[361832047,1747825832529,-3798.89710221,0.00031707,2]
[361832049,1747825832540,-23900.0,0.0003175,2]
[361832051,1747825832550,-207.4,0.00031788,2]
[361832053,1747825832561,-20544.25001996,0.00031806,10]
[361832056,1747825832573,-522.8446343,0.00031806,10]
[361832058,1747825832590,-570.55157139,0.00031806,10]
[361832111,1747825838174,-300.0,0.00031705,3]
[361832112,1747825838187,-2803.2,0.00031806,10]
[361832113,1747825838280,-2767.67377435,0.00031806,10]
[361832114,1747825838291,-299.99,0.00031806,12]
[361832115,1747825838300,-150.99,0.00031806,2]
[361832116,1747825838311,-997.78,0.00031806,2]
[361832117,1747825838321,-447.96792945,0.00031807,2]
[361832118,1747825838333,-401.50997972,0.00031807,2]
[361832126,1747825840418,-741.85077455,0.00031807,2]
[361832127,1747825840430,-6577.30096084,0.00031807,2]
[361832128,1747825840444,-2127.8,0.00031807,2]
[361832129,1747825840471,-1177.36941063,0.00031807,2]
[361832130,1747825840483,-3868.2,0.00031807,2]
[361832131,1747825840629,-2338.38,0.00031807,2]
[361832132,1747825840683,-12518.96954644,0.00031807,2]
[361832142,1747825843519,-1213.72160468,0.00031807,2]
[361832154,1747826558942,150.0,0.00014,5]
[361832174,1747826838788,205.0,9.8e-05,2]
[361832209,1747826972738,-300.0,0.00011999,2]
[361832210,1747826972762,-200.4189754,0.00011999,2]
[361832211,1747826972786,-580.07701569,0.00011999,2]
[361832212,1747826972810,-205.52723283,0.00011999,2]
[361832216,1747827032277,-294.47276717,0.00011999,2]
[361832217,1747827032288,-1311.96719283,0.00012,2]
[361832218,1747827032330,-298.21704593,0.00012,2]
[361832219,1747827032386,-3170.478375,0.00012,2]
[361832220,1747827032443,-3062.590609,0.00012,2]
[361832221,1747827032455,-15958.8002206,0.00012,2]
[361832222,1747827032466,-1241.06200001,0.00012,2]
[361832223,1747827032580,-300.0,0.00012,2]
[361832224,1747827032610,-339.07638992,0.00012,2]
[361832257,1747827038370,-2153.54532427,0.00012,2]
[361832258,1747827038382,-726.52992525,0.00012,2]
[361832259,1747827038461,-9545.86031978,0.00012,2]
[361832276,1747827040463,-426.56,0.00012,2]
[361832277,1747827040591,-401.82434013,0.00012,2]
[361832278,1747827040603,-763.8892603,0.00012,2]
[361832279,1747827040616,-21312.00000001,0.00012,2]
[361832280,1747827040675,-14184.94348228,0.00012,2]
[361832281,1747827040687,-3744.99530167,0.00012,2]
[361832282,1747827040701,-571.71661056,0.00012,2]
[361832283,1747827040836,-5331.0,0.00012,2]
[361832318,1747827043465,-436921.22042785,0.00012,2]
[361832319,1747827043475,-1440.78947446,0.0001295,2]
[361832320,1747827043486,-348.75448312,0.00013,2]
[361832321,1747827043503,-2055.89035224,0.0001305,2]
[361832322,1747827043514,-8002.7027294,0.00013368,2]
[361832323,1747827043524,-304.20545863,0.00013599,2]
[361832324,1747827043535,-153.98,0.00013699,2]
[361832325,1747827043546,-500.0,0.00013699,2]
[361832326,1747827043556,-500.0,0.00013699,2]
[361832327,1747827043567,-500.0,0.00013699,2]
[361832328,1747827043578,-500.0,0.00013699,2]
[361832329,1747827043588,-500.0,0.00013699,2]
[361832330,1747827043599,-500.0,0.00013699,2]
[361832331,1747827043610,-500.0,0.00013699,2]
[361832332,1747827043620,-500.0,0.00013699,2]
[361832333,1747827043630,-500.0,0.00013699,2]
[361832334,1747827043640,-500.0,0.00013699,2]
[361832335,1747827043651,-500.0,0.00013699,2]
[361832336,1747827043662,-500.0,0.00013699,2]
[361832337,1747827043672,-500.0,0.00013699,2]
[361832338,1747827043682,-597.33676984,0.00013699,2]
[361832339,1747827043696,-500.0,0.00013699,2]
[361832340,1747827043708,-500.0,0.00013699,2]
[361832341,1747827043718,-1440.78947445,0.00015457,2]
[361832342,1747827043729,-304.20545857,0.00016004,2]
[361832343,1747827043741,-202.97576784,0.00017,2]
[361832344,1747827043751,-202.97576782,0.00017186,2]
[361832345,1747827043761,-1440.78947445,0.00017965,2]
[361832346,1747827043771,-304.20545857,0.00018409,2]
[361832347,1747827043784,-166.6156,0.0002,2]
[361832348,1747827043794,-166.6156,0.0002,2]
[361832349,1747827043805,-1440.78947445,0.00020472,2]
[361832350,1747827043815,-304.20545857,0.00020813,2]
[361832351,1747827043825,-202.97576782,0.00021471,5]
[361832352,1747827043836,-500.0,0.00022,2]
[361832353,1747827043847,-1440.78947445,0.00022979,2]
[361832355,1747827043856,-500.0,0.00023068,2]
[361832356,1747827043867,-200.0,0.00023174,2]
[361832357,1747827043878,-1112.62,0.00023205,2]
[361832358,1747827043889,-304.20545857,0.00023218,2]
[361832359,1747827043899,-7127.80560216,0.00024,5]
[361832360,1747827043910,-150.0,0.0002405,7]
[361832361,1747827043920,-500.0,0.00024712,2]
[361832362,1747827043930,-115898.412017,0.000248,2]
[361832363,1747827043947,-1440.78947445,0.00025487,2]
[361832364,1747827043958,-304.20545857,0.00025623,2]
[361832365,1747827043969,-202.97576782,0.00025757,13]
[361832366,1747827043979,-153.98,0.00027397,2]
[361832367,1747827043989,-1440.78947445,0.00027994,2]
[361832368,1747827043999,-304.20545857,0.00028028,2]
[361832370,1747827044010,-35147.0,0.00028291,2]
[361832371,1747827044021,-500.0,0.00028548,2]
[361832372,1747827044031,-8915.26246284,0.0002999,2]
[361832373,1747827044041,-18446.81527364,0.0003,5]
[361832374,1747827044051,-779.68641877,0.0003,2]
[361832375,1747827044061,-230.0,0.0003,14]
[361832376,1747827044072,-202.97576782,0.00030043,22]
[361832377,1747827044083,-17830.5249257,0.00030145,2]
[361832378,1747827044092,-167.78,0.00030323,2]
[361832379,1747827044103,-304.20545857,0.00030432,2]
[361832380,1747827044114,-1440.78947445,0.00030501,2]
[361832381,1747827044123,-352.51,0.00030701,120]
[361832382,1747827044134,-1000.0,0.00030704,2]
[361832383,1747827044145,-212.0,0.00030732,2]
[361832384,1747827044155,-226.0,0.00030732,2]
[361832385,1747827044165,-164.59600689,0.00030984,3]
[361832386,1747827044175,-180.0,0.00031,30]
[361832387,1747827044185,-150.99,0.00031054,2]
[361832388,1747827044195,-8915.26246284,0.00031062,2]
[361832389,1747827044209,-8790.66,0.00031072,2]
[361832390,1747827044219,-456.6,0.00031084,2]
[361832391,1747827044230,-293.54,0.00031223,2]
[361832392,1747827044240,-207.4,0.00031426,2]
[361832393,1747827044250,-8915.26246284,0.00031435,2]
[361832394,1747827044261,-23900.0,0.00031445,2]
[361832395,1747827044271,-4383.54,0.0003149,2]
[361832396,1747827044282,-2104.75,0.00031602,2]
[361832397,1747827044291,-931.5306,0.00031707,30]
[361832398,1747827044302,-511.50668862,0.00031707,5]
[361832399,1747827044312,-250.0,0.00031752,2]
[361832400,1747827044322,-8915.26246284,0.00031753,2]
[361832401,1747827044332,-362.94,0.00031763,2]
[361832402,1747827044342,-12355.76,0.000318,2]
[361832403,1747827044352,-11786.25,0.00031807,2]
[361832404,1747827044362,-341.34,0.00031916,2]
[361832405,1747827044371,-151.0,0.00031954,2]
[361832410,1747827044781,-151.0,0.00031954,2]
[361832411,1747827044805,-668.65185757,0.00031954,2]
[361832412,1747827044818,-668.65185757,0.00031954,2]
[361832413,1747827044829,-1199.20597015,0.00031954,2]
[361832414,1747827044842,-1065.89594453,0.00031972,15]
[361832415,1747827044853,-8915.26246284,0.0003199,2]
[361832416,1747827044865,-427.75853121,0.00032,10]
[361832417,1747827044875,-3334.55433304,0.00032,3]
[361832418,1747827044887,-304.72,0.00032054,2]
[361832419,1747827044898,-301.11,0.00032054,2]
[361832420,1747827044909,-304.38,0.00032054,2]
[361832421,1747827044920,-302.01,0.00032054,2]
[361832422,1747827044931,-301.84,0.00032054,2]
[361832423,1747827044941,-305.67,0.00032054,2]
[361832424,1747827044951,-305.7,0.00032054,2]
[361832425,1747827044962,-305.67,0.00032054,2]
[361832426,1747827044973,-305.01,0.00032054,2]
[361832427,1747827044983,-305.39,0.00032054,2]
[361832428,1747827044994,-302.18,0.00032054,2]
[361832429,1747827045005,-304.31,0.00032054,2]
[361832430,1747827045016,-302.02,0.00032054,2]
[361832431,1747827045026,-304.62,0.00032054,2]
[361832432,1747827045036,-302.29,0.00032054,2]
[361832433,1747827045046,-300.23,0.00032054,2]
[361832434,1747827045058,-305.7,0.00032054,2]
[361832435,1747827045069,-422.9,0.00032173,2]
[361832436,1747827045080,-4958.0295,0.00032308,2]
[361832437,1747827045090,-525.26810546,0.00032407,2]
[361832438,1747827045101,-296.0,0.00032502,2]
[361832439,1747827045111,-693.3919763,0.00032502,2]
[361832440,1747827045121,-509.0,0.00032576,7]
[361832441,1747827045132,-511.50668863,0.00032645,5]
[361832442,1747827045142,-1200.0,0.000327,11]
[361832443,1747827045152,-302.21,0.00032707,2]
[361832444,1747827045162,-17830.5249257,0.00032735,2]
[361832445,1747827045172,-301.7,0.00032737,2]
[361832446,1747827045183,-26745.7873885,0.00032745,2]
[361832447,1747827045193,-7809.9603,0.00032755,2]
[361832448,1747827045204,-54862.9244,0.00032755,2]
[361832449,1747827045214,-417.7421,0.00032766,2]
[361832450,1747827045224,-1000.0,0.00032776,2]
[361832451,1747827045241,-168.15238171,0.00032776,4]
[361832452,1747827045251,-215.0738,0.00032795,2]
[361832453,1747827045262,-2400.0,0.000328,11]
[361832454,1747827045273,-302.51,0.00032807,2]
[361832455,1747827045283,-305.24,0.00032807,2]
[361832456,1747827045294,-305.02,0.00032807,2]
[361832457,1747827045306,-301.43,0.00032807,2]
[361832458,1747827045317,-8915.26246284,0.00032824,2]
[361832459,1747827045328,-17830.5249257,0.00032825,2]
[361832460,1747827045339,-304.20545857,0.00032837,2]
[361832461,1747827045353,-348.63667351,0.00032869,2]
[361832462,1747827045364,-500.0,0.00032873,5]
[361832463,1747827045375,-509.87168244,0.00032873,5]
[361832464,1747827045386,-203.48106747,0.00032875,2]
[361832465,1747827045398,-198.90807116,0.00032875,2]
[361832466,1747827045408,-189.310913,0.00032876,5]
[361832467,1747827045420,-978.514542,0.00032876,5]
[361832468,1747827045431,-420.0,0.00032876,5]
[361832469,1747827045442,-420.0,0.00032876,5]
[361832470,1747827045453,-420.0,0.00032876,5]
[361832471,1747827045463,-420.0,0.00032876,5]
[361832472,1747827045474,-420.0,0.00032876,5]
[361832473,1747827045485,-448.35889541,0.00032876,5]
[361832474,1747827045495,-420.0,0.00032876,5]
[361832475,1747827045505,-420.0,0.00032876,5]
[361832476,1747827045516,-172.6458496,0.00032876,5]
[361832477,1747827045526,-420.0,0.00032876,5]
[361832478,1747827045536,-196.08,0.00032876,5]
[361832479,1747827045546,-460.75,0.00032876,5]
[361832480,1747827045558,-405.81,0.00032876,5]
[361832481,1747827045568,-345.91,0.00032876,5]
[361832482,1747827045578,-420.0,0.00032876,5]
[361832483,1747827045588,-852.08,0.00032876,5]
[361832484,1747827045598,-420.0,0.00032876,5]
[361832485,1747827045609,-420.0,0.00032876,5]
[361832486,1747827045619,-420.0,0.00032876,5]
[361832487,1747827045629,-838.29,0.00032876,5]
[361832488,1747827045640,-263.76462549,0.00032876,5]
[361832489,1747827045650,-420.0,0.00032876,5]
[361832490,1747827045660,-420.0,0.00032876,5]
[361832491,1747827045676,-442.90996706,0.00032876,5]
[361832492,1747827045687,-402.11715253,0.00032876,5]
[361832493,1747827045700,-420.0,0.00032876,5]
[361832494,1747827045711,-756.34,0.00032876,5]
[361832495,1747827045723,-456.81,0.00032876,5]
[361832496,1747827045733,-185.08679167,0.00032876,5]
[361832497,1747827045745,-420.0,0.00032876,5]
[361832498,1747827045756,-420.0,0.00032876,5]
[361832499,1747827045767,-400.14891288,0.00032876,5]
[361832500,1747827045778,-480.11,0.00032876,5]
[361832501,1747827045790,-420.0,0.00032876,5]
[361832502,1747827045801,-420.0,0.00032876,5]
[361832503,1747827045811,-803.54,0.00032876,5]
[361832504,1747827045823,-1218.18,0.00032876,5]
[361832505,1747827045834,-164.68027058,0.00032876,5]
[361832506,1747827045844,-942.88,0.00032876,5]
[361832507,1747827045855,-797.13,0.00032876,5]
[361832508,1747827045866,-420.0,0.00032876,5]
[361832509,1747827045877,-420.0,0.00032876,5]
[361832510,1747827045896,-1263.34,0.00032876,5]
[361832511,1747827045906,-331.82708051,0.00032876,5]
[361832512,1747827045917,-400.0,0.00032876,5]
[361832513,1747827045927,-326.36268541,0.00032876,5]
[361832514,1747827045937,-420.0,0.00032876,5]
[361832515,1747827045947,-420.0,0.00032876,5]
[361832516,1747827045957,-401.04565846,0.00032876,5]
[361832517,1747827045968,-599.61,0.00032876,5]
[361832518,1747827045979,-420.0,0.00032876,5]
[361832519,1747827045989,-420.0,0.00032876,5]